[Event "RUS-chT Men Rapid 2019"]
[Site "Sochi"]
[Date "2019.10.19"]
[Round "8.3"]
[White "Savchenko, Boris"]
[Black "Moiseenko, Vadim"]
[Result "1-0"]
[ECO "C78"]
[WhiteElo "2581"]
[BlackElo "2532"]
[Annotator "ChessBase"]
[PlyCount "73"]
[EventDate "2019.10.18"]
[EventType "swiss"]
[EventCountry "RUS"]
[SourceTitle "playchess.com"]
[Source "ChessBase"]
[SourceQuality "1"]
[TimeControl "900+10"]

1. e4 {[%emt 0:00:00]} e5 {[%emt 0:00:00]} 2. Nf3 {[%emt 0:00:00]} Nc6 {[%emt 0:00:00]} 3. Bb5 {[%emt 0:00:00]} a6 {[%emt 0:00:00]} 4. Ba4 {[%emt 0:00:00]} Nf6 {[%emt 0:00:19]} 5. O-O {[%emt 0:00:02]} b5 {[%emt 0:00:06]} 6. Bb3 {[%emt 0:00:02]} Be7 {[%emt 0:00:04]} 7. a4 {[%emt 0:01:10]} Bb7 {[%emt 0:00:18]} 8. Re1 {[%emt 0:02:15]} O-O {[%emt 0:00:09]} 9. c3 {[%emt 0:00:06]} d5 {[%emt 0:00:34]} 10. exd5 {[%emt 0:00:02]} Nxd5 {[%emt 0:00:01]} 11. axb5 {[%emt 0:05:22]} axb5 {[%emt 0:00:01]} 12. Rxa8 {[%emt 0:00:02]} Bxa8 {[%emt 0:00:02]} 13. d4 {[%emt 0:01:30]} exd4 {[%emt 0:00:14]} 14. cxd4 {[%emt 0:00:57]} Bb4 {[%emt 0:01:29]} 15. Bd2 {[%emt 0:00:46]} Bxd2 {[%emt 0:03:02]} 16. Nbxd2 {[%emt 0:00:09]} Nf6 {[%emt 0:00:02]} 17. Ne4 {[%emt 0:02:34]} Nxe4 {[%emt 0:00:47]} 18. Rxe4 {[%emt 0:00:02]} Na5 {[%emt 0:00:10]} 19. Re3 {[%emt 0:01:01]} Nxb3 {[%emt 0:00:22]} 20. Rxb3 {[%emt 0:00:04]} Qd7 {[%emt 0:06:11]} 21. Rc3 {[%emt 0:00:03]} Rd8 {[%emt 0:00:26]} 22. h3 {[%emt 0:00:13]} h6 {[%emt 0:00:20]} 23. Qc1 {[%emt 0:00:08]} Qf5 {[%emt 0:00:56]} 24. Rc5 {[%emt 0:00:45]} Qf6 {[%emt 0:00:05]} 25. Ne5 {[%emt 0:00:42]} Rxd4 {[%emt 0:00:29]} 26. Rxb5 {[%emt 0:00:09]} Qd6 {[%emt 0:00:31]} 27. Rb8+ {[%emt 0:00:02]} Kh7 {[%emt 0:00:01]} 28. Rh8+ {[%emt 0:00:02]} Kxh8 {[%emt 0:00:05]} 29. Nxf7+ {[%emt 0:00:01]} Kh7 {[%emt 0:00:14]} 30. Nxd6 {[%emt 0:00:03]} cxd6 {[%emt 0:00:02]} 31. Qc3 {[%emt 0:00:31]} Rd1+ {[%emt 0:00:11]} 32. Kh2 {[%emt 0:00:01]} Be4 {[%emt 0:00:08]} 33. f3 {[%emt 0:00:23]} Bg6 {[%emt 0:00:02]} 34. b4 {[%emt 0:01:19]} d5 {[%emt 0:00:01]} 35. Qb3 {[%emt 0:00:08]} Rd3 {[%emt 0:00:01]} 36. Qb2 {[%emt 0:00:02]} Rd1 {[%emt 0:00:11]} 37. b5 {[%emt 0:00:05]} 1-0

[Event "RUS-chT Men Rapid 2019"]
[Site "Sochi"]
[Date "2019.10.19"]
[Round "8.4"]
[White "Rozum, Ivan"]
[Black "Popov, Ivan"]
[Result "1/2-1/2"]
[ECO "A06"]
[WhiteElo "2599"]
[BlackElo "2611"]
[Annotator "ChessBase"]
[PlyCount "123"]
[EventDate "2019.10.18"]
[EventType "swiss"]
[EventCountry "RUS"]
[SourceTitle "playchess.com"]
[Source "ChessBase"]
[SourceQuality "1"]
[TimeControl "900+10"]

1. Nf3 {[%emt 0:00:00]} d5 {[%emt 0:00:00]} 2. e3 {[%emt 0:00:00]} Nf6 {[%emt 0:00:00]} 3. c4 {[%emt 0:00:01]} dxc4 {[%emt 0:00:00]} 4. Bxc4 {[%emt 0:00:02]} e6 {[%emt 0:00:01]} 5. O-O {[%emt 0:00:07]} c5 {[%emt 0:00:02]} 6. Nc3 {[%emt 0:00:38]} Be7 {[%emt 0:00:06]} 7. d4 {[%emt 0:00:17]} cxd4 {[%emt 0:00:02]} 8. exd4 {[%emt 0:00:06]} O-O {[%emt 0:00:02]} 9. d5 {[%emt 0:01:21]} exd5 {[%emt 0:00:02]} 10. Nxd5 {[%emt 0:00:02]} Nxd5 {[%emt 0:00:01]} 11. Bxd5 {[%emt 0:00:09]} Nc6 {[%emt 0:00:02]} 12. Be3 {[%emt 0:00:58]} Bf5 {[%emt 0:00:02]} 13. a3 {[%emt 0:01:27]} Qd6 {[%emt 0:03:26]} 14. Qb3 {[%emt 0:00:20]} Be6 {[%emt 0:01:29]} 15. Bxe6 {[%emt 0:00:59]} Qxe6 {[%emt 0:00:01]} 16. Qxe6 {[%emt 0:00:55]} fxe6 {[%emt 0:00:02]} 17. Rad1 {[%emt 0:01:50]} Rad8 {[%emt 0:01:38]} 18. Ng5 {[%emt 0:00:21]} Bxg5 {[%emt 0:01:23]} 19. Bxg5 {[%emt 0:00:02]} Rd5 {[%emt 0:00:01]} 20. Rxd5 {[%emt 0:01:06]} exd5 {[%emt 0:00:02]} 21. Rd1 {[%emt 0:00:02]} Rf5 {[%emt 0:01:22]} 22. Bd2 {[%emt 0:00:44]} d4 {[%emt 0:01:02]} 23. f4 {[%emt 0:02:07]} a5 {[%emt 0:02:39]} 24. b4 {[%emt 0:00:51]} axb4 {[%emt 0:00:02]} 25. axb4 {[%emt 0:00:01]} Rb5 {[%emt 0:00:25]} 26. Kf1 {[%emt 0:00:17]} Kf7 {[%emt 0:00:34]} 27. Ke2 {[%emt 0:00:04]} Ke6 {[%emt 0:00:01]} 28. Kd3 {[%emt 0:00:24]} Kd5 {[%emt 0:00:02]} 29. Rb1 {[%emt 0:00:15]} h5 {[%emt 0:00:40]} 30. g3 {[%emt 0:00:15]} g6 {[%emt 0:00:59]} 31. h3 {[%emt 0:00:21]} Rb6 {[%emt 0:00:34]} 32. Re1 {[%emt 0:01:48]} Ra6 {[%emt 0:00:26]} 33. b5 {[%emt 0:00:28]} Ra3+ {[%emt 0:00:01]} 34. Kc2 {[%emt 0:00:03]} Ra2+ {[%emt 0:00:17]} 35. Kd3 {[%emt 0:00:31]} Ra3+ {[%emt 0:00:02]} 36. Kc2 {[%emt 0:00:25]} Na7 {[%emt 0:00:32]} 37. Re7 {[%emt 0:00:21]} Nxb5 {[%emt 0:00:21]} 38. Rxb7 {[%emt 0:00:02]} Kc4 {[%emt 0:00:08]} 39. g4 {[%emt 0:00:26]} Rxh3 {[%emt 0:01:12]} 40. gxh5 {[%emt 0:00:28]} Rxh5 {[%emt 0:00:23]} 41. Rb8 {[%emt 0:00:56]} d3+ {[%emt 0:00:03]} 42. Kb2 {[%emt 0:00:03]} Rh2 {[%emt 0:00:03]} 43. Rc8+ {[%emt 0:00:17]} Kd5 {[%emt 0:00:11]} 44. Rd8+ {[%emt 0:00:04]} Kc4 {[%emt 0:01:07]} 45. Rc8+ {[%emt 0:00:01]} Kd4 {[%emt 0:00:27]} 46. Rd8+ {[%emt 0:00:02]} Ke4 {[%emt 0:00:01]} 47. Re8+ {[%emt 0:00:02]} Kf5 {[%emt 0:00:36]} 48. Re5+ {[%emt 0:00:06]} Kf6 {[%emt 0:00:11]} 49. Rxb5 {[%emt 0:00:05]} Rxd2+ {[%emt 0:00:02]} 50. Kc3 {[%emt 0:00:01]} Rd1 {[%emt 0:00:14]} 51. Rd5 {[%emt 0:00:34]} Rc1+ {[%emt 0:00:08]} 52. Kd2 {[%emt 0:00:05]} Rf1 {[%emt 0:00:09]} 53. Ke3 {[%emt 0:00:19]} Re1+ {[%emt 0:00:01]} 54. Kf3 {[%emt 0:00:10]} Rd1 {[%emt 0:00:02]} 55. Ke3 {[%emt 0:00:01]} Re1+ {[%emt 0:00:12]} 56. Kf3 {[%emt 0:00:01]} Rf1+ {[%emt 0:00:12]} 57. Ke3 {[%emt 0:00:08]} Rh1 {[%emt 0:00:10]} 58. Rxd3 {[%emt 0:00:06]} Rh3+ {[%emt 0:00:02]} 59. Ke4 {[%emt 0:00:01]} Rxd3 {[%emt 0:00:01]} 60. Kxd3 {[%emt 0:00:01]} g5 {[%emt 0:00:01]} 61. fxg5+ {[%emt 0:00:01]} Kxg5 {[%emt 0:00:01]} 62. Ke4 {[%emt 0:01:02]} 1/2-1/2

[Event "RUS-chT Men Rapid 2019"]
[Site "Sochi"]
[Date "2019.10.19"]
[Round "8.5"]
[White "Drygalov, Andrey"]
[Black "Pridorozhni, Aleksei"]
[Result "1/2-1/2"]
[ECO "C42"]
[WhiteElo "2484"]
[BlackElo "2599"]
[Annotator "ChessBase"]
[PlyCount "29"]
[EventDate "2019.10.18"]
[EventType "swiss"]
[EventCountry "RUS"]
[SourceTitle "playchess.com"]
[Source "ChessBase"]
[SourceQuality "1"]
[TimeControl "900+10"]

1. e4 {[%emt 0:00:00]} e5 {[%emt 0:00:00]} 2. Nf3 {[%emt 0:00:00]} Nf6 {[%emt 0:00:00]} 3. Nxe5 {[%emt 0:00:08]} d6 {[%emt 0:00:00]} 4. Nf3 {[%emt 0:00:02]} Nxe4 {[%emt 0:00:00]} 5. d4 {[%emt 0:00:05]} Be7 {[%emt 0:00:11]} 6. Bd3 {[%emt 0:00:01]} Bf5 {[%emt 0:00:07]} 7. O-O {[%emt 0:00:10]} d5 {[%emt 0:00:02]} 8. Re1 {[%emt 0:00:22]} O-O {[%emt 0:00:03]} 9. Nbd2 {[%emt 0:00:02]} Nd6 {[%emt 0:00:11]} 10. Bxf5 {[%emt 0:00:05]} Nxf5 {[%emt 0:00:02]} 11. Nf1 {[%emt 0:00:16]} c6 {[%emt 0:00:15]} 12. Qd3 {[%emt 0:00:35]} Nd6 {[%emt 0:00:11]} 13. Ng3 {[%emt 0:00:05]} Na6 {[%emt 0:00:02]} 14. Bf4 {[%emt 0:00:30]} Nc7 {[%emt 0:00:09]} 15. Nf5 {[%emt 0:01:13]} 1/2-1/2

[Event "RUS-chT Men Rapid 2019"]
[Site "Sochi"]
[Date "2019.10.19"]
[Round "8.6"]
[White "Potapov, Pavel"]
[Black "Lugovskoy, Maxim"]
[Result "1/2-1/2"]
[ECO "D35"]
[WhiteElo "2489"]
[BlackElo "2436"]
[Annotator "ChessBase"]
[PlyCount "23"]
[EventDate "2019.10.18"]
[EventType "swiss"]
[EventCountry "RUS"]
[SourceTitle "playchess.com"]
[Source "ChessBase"]
[SourceQuality "1"]
[TimeControl "900+10"]

1. d4 {[%emt 0:00:00]} d5 {[%emt 0:00:00]} 2. c4 {[%emt 0:00:00]} e6 {[%emt 0:00:00]} 3. Nc3 {[%emt 0:00:00]} Nf6 {[%emt 0:00:00]} 4. cxd5 {[%emt 0:00:00]} exd5 {[%emt 0:00:00]} 5. Bg5 {[%emt 0:00:03]} c6 {[%emt 0:00:02]} 6. e3 {[%emt 0:00:06]} Be7 {[%emt 0:00:03]} 7. Bd3 {[%emt 0:00:10]} Nbd7 {[%emt 0:00:03]} 8. Qc2 {[%emt 0:00:06]} O-O {[%emt 0:00:07]} 9. Nf3 {[%emt 0:00:10]} Re8 {[%emt 0:00:02]} 10. O-O {[%emt 0:00:02]} Nf8 {[%emt 0:00:02]} 11. Rab1 {[%emt 0:00:58]} Bd6 {[%emt 0:00:03]} 12. b4 {[%emt 0:04:05]} 1/2-1/2

[Event "RUS-chT Men Rapid 2019"]
[Site "Sochi"]
[Date "2019.10.19"]
[Round "8.7"]
[White "Vastrukhin, Oleg"]
[Black "Belyakov, Bogdan"]
[Result "1/2-1/2"]
[ECO "A36"]
[WhiteElo "2428"]
[BlackElo "2495"]
[Annotator "RC"]
[PlyCount "83"]
[EventDate "2019.10.18"]
[EventType "swiss"]
[EventCountry "RUS"]
[SourceTitle "playchess.com"]
[Source "ChessBase"]
[SourceQuality "1"]
[TimeControl "900+10"]

1. g3 {[%emt 0:00:00]} g6 {[%emt 0:00:15]} 2. Bg2 {[%emt 0:00:00]} Bg7 {[%emt 0:00:01]} 3. c4 {[%emt 0:00:00]} c5 {[%emt 0:00:10]} 4. Nc3 {[%emt 0:00:00]} Nc6 {[%emt 0:00:02]} 5. e3 {[%emt 0:00:00]} Rb8 {[%emt 0:00:32]} 6. Nge2 {[%emt 0:00:07]} a6 {[%emt 0:00:02]} 7. d4 {[%emt 0:01:37]} cxd4 {[%emt 0:00:46]} 8. exd4 {[%emt 0:00:01]} d6 {[%emt 0:00:02]} 9. O-O {[%emt 0:00:27]} Nf6 {[%emt 0:00:32]} 10. b4 {[%emt 0:01:54]} O-O {[%emt 0:02:28]} 11. a3 Bf5 {[%emt 0:01:31]} 12. h3 {[%emt 0:01:09]} e5 {[%emt 0:02:21]} 13. Be3 {[%emt 0:02:05]} exd4 {[%emt 0:00:56]} 14. Nxd4 {[%emt 0:00:01]} Nxd4 {[%emt 0:00:02]} 15. Bxd4 {[%emt 0:00:02]} Qc8 {[%emt 0:00:06]} 16. g4 {[%emt 0:00:35]} Be6 {[%emt 0:00:02]} 17. Nd5 {[%emt 0:00:53]} Nxd5 {[%emt 0:01:04]} 18. cxd5 {[%emt 0:03:16]} Bd7 {[%emt 0:00:02]} 19. Bxg7 {[%emt 0:00:04]} Kxg7 {[%emt 0:00:02]} 20. Qd4+ {[%emt 0:00:01]} Kg8 {[%emt 0:02:02]} 21. Qb6 {[%emt 0:00:25]} Bb5 {[%emt 0:00:28]} 22. Rfc1 {[%emt 0:00:35]} Qd8 {[%emt 0:00:01]} 23. Qxd8 {[%emt 0:01:11]} Rfxd8 {[%emt 0:00:11]} 24. Rc7 {[%emt 0:00:03]} Rd7 {[%emt 0:00:23]} 25. Rac1 {[%emt 0:00:05]} Rbd8 {[%emt 0:00:02]} 26. Bf1 {[%emt 0:00:57]} Bxf1 {[%emt 0:00:47]} 27. Kxf1 {[%emt 0:00:01]} Kf8 {[%emt 0:00:17]} 28. Ke2 {[%emt 0:00:06]} Ke7 {[%emt 0:01:25]} 29. g5 {[%emt 0:01:01]} Rxc7 {[%emt 0:00:10]} 30. Rxc7+ {[%emt 0:00:02]} Rd7 {[%emt 0:00:01]} 31. Rc8 {[%emt 0:00:42]} Rd8 {[%emt 0:00:01]} 32. Rc7+ {[%emt 0:00:36]} Rd7 {[%emt 0:00:02]} 33. Rc1 {[%emt 0:02:09]} Rd8 {[%emt 0:00:02]} 34. Kd3 {[%emt 0:00:05]} Kd7 {[%emt 0:00:01]} 35. f4 {[%emt 0:00:20]} h6 {[%emt 0:00:06]} 36. h4 {[%emt 0:00:06]} hxg5 37. fxg5 {[%emt 0:00:01]} Rh8 {[%emt 0:00:09]} 38. Rf1 {[%emt 0:00:05]} Ke7 {[%emt 0:00:02]} 39. Rf4 {[%emt 0:00:09]} Rc8 {[%emt 0:00:44]} 40. Rc4 {[%emt 0:00:20]} Rxc4 {[%emt 0:00:32]} 41. Kxc4 {[%emt 0:00:01]} b5+ {[%emt 0:00:38]} 42. Kd4 {[%emt 0:00:01]} 1/2-1/2

[Event "RUS-chT Men Rapid 2019"]
[Site "Sochi"]
[Date "2019.10.19"]
[Round "8.8"]
[White "Savitskiy, Sergey"]
[Black "Utnasunov, Alexander"]
[Result "0-1"]
[ECO "B72"]
[WhiteElo "2407"]
[BlackElo "2442"]
[Annotator "NA"]
[PlyCount "116"]
[EventDate "2019.10.18"]
[EventType "swiss"]
[EventCountry "RUS"]
[SourceTitle "playchess.com"]
[Source "ChessBase"]
[SourceQuality "1"]
[TimeControl "900+10"]

1. e4 {[%emt 0:00:00]} c5 {[%emt 0:00:00]} 2. Nf3 {[%emt 0:00:00]} d6 {[%emt 0:00:00]} 3. d4 {[%emt 0:00:00]} cxd4 {[%emt 0:00:00]} 4. Nxd4 {[%emt 0:00:00]} Nf6 {[%emt 0:00:00]} 5. Nc3 {[%emt 0:00:00]} g6 {[%emt 0:00:00]} 6. Be3 {[%emt 0:00:25]} a6 {[%emt 0:00:00]} 7. f3 {[%emt 0:00:25]} b5 {[%emt 0:00:00]} 8. a3 {[%emt 0:00:00]} Bb7 {[%emt 0:00:01]} 9. Qd2 {[%emt 0:01:29]} Nbd7 {[%emt 0:00:02]} 10. Bh6 {[%emt 0:01:00]} Bxh6 {[%emt 0:00:51]} 11. Qxh6 {[%emt 0:00:02]} Rc8 {[%emt 0:00:01]} 12. Rd1 {[%emt 0:01:22]} Qb6 {[%emt 0:02:26]} 13. Be2 {[%emt 0:01:09]} Ne5 {[%emt 0:01:50]} 14. Qg7 {[%emt 0:02:34]} Rg8 {[%emt 0:03:24]} 15. Qh6 {[%emt 0:00:01]} Nc4 {[%emt 0:01:18]} 16. Bxc4 {[%emt 0:00:08]} Rxc4 {[%emt 0:00:02]} 17. Qd2 {[%emt 0:01:53]} Kf8 {[%emt 0:01:13]} 18. Qh6+ {[%emt 0:03:48]} Ke8 {[%emt 0:00:05]} 19. Qd2 {[%emt 0:00:01]} Kf8 {[%emt 0:00:02]} 20. Qh6+ {[%emt 0:01:00]} Ke8 {[%emt 0:00:07]} 21. Qe3 {[%emt 0:00:20]} Qc5 {[%emt 0:00:28]} 22. Kf2 {[%emt 0:00:41]} Kf8 {[%emt 0:00:47]} 23. Nb3 {[%emt 0:00:22]} Qxe3+ {[%emt 0:00:37]} 24. Kxe3 {[%emt 0:00:01]} Kg7 {[%emt 0:00:22]} 25. Na5 {[%emt 0:00:29]} Rc7 {[%emt 0:00:01]} 26. Rd4 {[%emt 0:00:01]} Bc6 {[%emt 0:01:26]} 27. Na2 {[%emt 0:01:01]} Bd7 {[%emt 0:01:50]} 28. Nb4 {[%emt 0:00:03]} Ra8 {[%emt 0:00:04]} 29. Rhd1 {[%emt 0:00:06]} Be6 {[%emt 0:00:04]} 30. Ra1 {[%emt 0:00:21]} Nd7 {[%emt 0:00:09]} 31. Rad1 {[%emt 0:01:04]} Nb6 {[%emt 0:00:08]} 32. b3 {[%emt 0:00:07]} h5 {[%emt 0:00:47]} 33. h4 {[%emt 0:00:03]} Nd7 {[%emt 0:00:04]} 34. R1d2 {[%emt 0:00:17]} Nc5 {[%emt 0:00:06]} 35. Rd1 {[%emt 0:00:16]} Nb7 {[%emt 0:00:10]} 36. Nxb7 {[%emt 0:00:02]} Rxb7 {[%emt 0:00:01]} 37. Nd3 {[%emt 0:00:20]} Rc8 {[%emt 0:00:07]} 38. Ne1 {[%emt 0:00:00]} a5 {[%emt 0:00:15]} 39. Kd2 {[%emt 0:00:17]} Rbc7 {[%emt 0:00:06]} 40. Rd3 {[%emt 0:00:11]} f5 {[%emt 0:00:17]} 41. Rc1 {[%emt 0:00:14]} Rc5 {[%emt 0:00:12]} 42. Re3 {[%emt 0:00:10]} f4 {[%emt 0:00:20]} 43. Rd3 {[%emt 0:00:01]} g5 {[%emt 0:00:13]} 44. hxg5 {[%emt 0:00:02]} Rxg5 {[%emt 0:00:02]} 45. Rc3 {[%emt 0:00:03]} Kf6 {[%emt 0:00:41]} 46. Rxc8 {[%emt 0:00:05]} Bxc8 {[%emt 0:00:01]} 47. c4 {[%emt 0:00:16]} Be6 {[%emt 0:00:17]} 48. cxb5 {[%emt 0:00:32]} Rxb5 49. b4 axb4 {[%emt 0:00:43]} 50. axb4 {[%emt 0:00:01]} Rxb4 {[%emt 0:00:05]} 51. Nd3 {[%emt 0:00:04]} Rd4 {[%emt 0:00:07]} 52. Kc3 {[%emt 0:00:09]} Rc4+ {[%emt 0:00:02]} 53. Kd2 {[%emt 0:00:00]} Rxc1 {[%emt 0:00:01]} 54. Kxc1 {[%emt 0:00:06]} Kg5 {[%emt 0:00:01]} 55. Kd2 {[%emt 0:00:09]} Bc4 {[%emt 0:00:01]} 56. Nf2 {[%emt 0:00:38]} Kh4 {[%emt 0:00:29]} 57. Nh3 {[%emt 0:00:27]} e5 {[%emt 0:00:10]} 58. Ke1 {[%emt 0:00:11]} Kg3 {[%emt 0:00:01]} 0-1

[Event "RUS-chT Men Rapid 2019"]
[Site "Sochi"]
[Date "2019.10.19"]
[Round "8.9"]
[White "Bocharov, Dmitry"]
[Black "Nozdrachev, Vladislav"]
[Result "1-0"]
[ECO "A13"]
[WhiteElo "2519"]
[BlackElo "2494"]
[Annotator "ChessBase"]
[PlyCount "81"]
[EventDate "2019.10.18"]
[EventType "swiss"]
[EventCountry "RUS"]
[SourceTitle "playchess.com"]
[Source "ChessBase"]
[SourceQuality "1"]
[TimeControl "900+10"]

1. c4 {[%emt 0:00:00]} e6 {[%emt 0:00:00]} 2. Nf3 {[%emt 0:00:00]} Nf6 {[%emt 0:00:00]} 3. e3 {[%emt 0:00:10]} d5 {[%emt 0:00:05]} 4. b3 {[%emt 0:00:02]} Bd6 {[%emt 0:00:06]} 5. Bb2 {[%emt 0:00:03]} O-O {[%emt 0:00:03]} 6. Nc3 {[%emt 0:00:02]} c6 {[%emt 0:00:04]} 7. d4 {[%emt 0:00:31]} b6 {[%emt 0:00:16]} 8. Bd3 {[%emt 0:00:06]} Bb7 {[%emt 0:00:01]} 9. O-O {[%emt 0:00:06]} Nbd7 {[%emt 0:00:02]} 10. Re1 {[%emt 0:00:36]} Qe7 {[%emt 0:00:52]} 11. Rc1 {[%emt 0:01:06]} Rac8 {[%emt 0:00:53]} 12. Bb1 {[%emt 0:03:10]} c5 {[%emt 0:01:19]} 13. cxd5 {[%emt 0:00:02]} exd5 {[%emt 0:00:06]} 14. Bf5 {[%emt 0:00:50]} g6 {[%emt 0:01:55]} 15. Bh3 {[%emt 0:00:16]} a6 {[%emt 0:00:09]} 16. g3 {[%emt 0:01:30]} Rc7 {[%emt 0:00:31]} 17. Re2 {[%emt 0:00:50]} c4 {[%emt 0:00:48]} 18. bxc4 {[%emt 0:00:14]} Rxc4 {[%emt 0:00:07]} 19. Rec2 {[%emt 0:00:16]} b5 {[%emt 0:00:05]} 20. a4 {[%emt 0:02:23]} Bc6 {[%emt 0:02:59]} 21. axb5 {[%emt 0:00:12]} axb5 {[%emt 0:00:02]} 22. Nd2 {[%emt 0:00:03]} Nb6 {[%emt 0:00:20]} 23. Bg2 {[%emt 0:00:29]} Bd7 {[%emt 0:00:52]} 24. Nxc4 {[%emt 0:01:06]} dxc4 {[%emt 0:00:01]} 25. e4 {[%emt 0:00:20]} b4 {[%emt 0:00:04]} 26. e5 {[%emt 0:00:18]} bxc3 {[%emt 0:00:02]} 27. exd6 {[%emt 0:00:36]} Qxd6 {[%emt 0:00:10]} 28. Rxc3 {[%emt 0:00:08]} Rc8 {[%emt 0:00:37]} 29. Ba3 {[%emt 0:00:44]} Qc7 {[%emt 0:00:47]} 30. d5 {[%emt 0:00:13]} Qe5 {[%emt 0:00:33]} 31. Re3 {[%emt 0:00:15]} Qf5 {[%emt 0:00:01]} 32. Qd4 {[%emt 0:00:38]} Nfxd5 {[%emt 0:02:18]} 33. Re5 {[%emt 0:00:33]} Qd3 {[%emt 0:01:27]} 34. Qxd3 {[%emt 0:00:03]} cxd3 {[%emt 0:00:01]} 35. Rxc8+ {[%emt 0:00:02]} Bxc8 {[%emt 0:00:01]} 36. Bxd5 {[%emt 0:00:26]} d2 {[%emt 0:00:02]} 37. Bf3 {[%emt 0:00:18]} Bb7 {[%emt 0:01:15]} 38. Re8+ {[%emt 0:00:19]} Kg7 {[%emt 0:00:01]} 39. Bb2+ {[%emt 0:00:01]} Kh6 {[%emt 0:00:07]} 40. Bd1 {[%emt 0:00:11]} Bc6 {[%emt 0:00:06]} 41. Rd8 {[%emt 0:00:08]} 1-0

[Event "RUS-chT Men Rapid 2019"]
[Site "Sochi"]
[Date "2019.10.19"]
[Round "8.10"]
[White "Vakhlamov, Igor L."]
[Black "Yuffa, Daniil"]
[Result "0-1"]
[ECO "B11"]
[WhiteElo "2413"]
[BlackElo "2577"]
[Annotator "ChessBase"]
[PlyCount "71"]
[EventDate "2019.10.18"]
[EventType "swiss"]
[EventCountry "RUS"]
[SourceTitle "playchess.com"]
[Source "ChessBase"]
[SourceQuality "1"]
[TimeControl "900+10"]

1. e4 {[%emt 0:00:00]} c6 {[%emt 0:00:00]} 2. Nc3 {[%emt 0:00:00]} d5 {[%emt 0:00:00]} 3. Nf3 {[%emt 0:00:08]} Bg4 {[%emt 0:00:00]} 4. h3 {[%emt 0:00:02]} Bxf3 {[%emt 0:00:00]} 5. Qxf3 {[%emt 0:00:02]} e6 {[%emt 0:00:00]} 6. d4 {[%emt 0:00:18]} Nf6 {[%emt 0:00:54]} 7. Bd3 {[%emt 0:01:17]} dxe4 {[%emt 0:00:13]} 8. Nxe4 {[%emt 0:00:02]} Qxd4 {[%emt 0:00:39]} 9. O-O {[%emt 0:00:58]} Nbd7 {[%emt 0:00:50]} 10. Be3 {[%emt 0:03:28]} Qd5 {[%emt 0:00:51]} 11. Rfd1 {[%emt 0:00:36]} Be7 {[%emt 0:01:48]} 12. Nxf6+ {[%emt 0:03:33]} Nxf6 {[%emt 0:00:42]} 13. Qg3 {[%emt 0:00:56]} Bd6 {[%emt 0:01:16]} 14. Qh4 {[%emt 0:00:30]} Qe5 {[%emt 0:01:05]} 15. g3 {[%emt 0:02:10]} Bc5 {[%emt 0:00:09]} 16. Bd2 {[%emt 0:02:39]} O-O-O {[%emt 0:01:15]} 17. b4 {[%emt 0:00:23]} Bd4 {[%emt 0:02:20]} 18. Rab1 {[%emt 0:00:29]} h6 {[%emt 0:00:32]} 19. Qf4 {[%emt 0:00:11]} Qxf4 {[%emt 0:00:38]} 20. Bxf4 {[%emt 0:00:02]} Nh5 {[%emt 0:00:16]} 21. Kg2 {[%emt 0:00:30]} Nxf4+ {[%emt 0:00:04]} 22. gxf4 {[%emt 0:00:02]} g6 {[%emt 0:00:25]} 23. Be4 {[%emt 0:00:10]} Bf6 {[%emt 0:01:04]} 24. Kf3 {[%emt 0:00:15]} Kc7 {[%emt 0:00:52]} 25. Ke2 {[%emt 0:00:15]} Be7 {[%emt 0:01:01]} 26. Rd3 {[%emt 0:00:12]} Rxd3 {[%emt 0:00:07]} 27. Bxd3 {[%emt 0:00:05]} Rd8 {[%emt 0:00:07]} 28. c3 {[%emt 0:00:01]} Rd5 {[%emt 0:00:06]} 29. Be4 {[%emt 0:00:11]} Rh5 {[%emt 0:00:07]} 30. Rh1 {[%emt 0:00:09]} Rh4 {[%emt 0:00:09]} 31. a4 {[%emt 0:00:16]} Rxf4 {[%emt 0:00:04]} 32. Bg2 {[%emt 0:00:01]} a5 {[%emt 0:00:07]} 33. b5 {[%emt 0:00:27]} Rxa4 {[%emt 0:00:09]} 34. bxc6 {[%emt 0:00:01]} Ra2+ {[%emt 0:00:14]} 35. Kd3 {[%emt 0:00:12]} Rxf2 {[%emt 0:00:13]} 36. Kd4 0-1